fUSD/lending_fUSD_20240414
["ID","MTS","AMOUNT","RATE_DAILY","PERIOD"]
[322573778,1713077439084,-176.4602082,0.00025288,2]
[322573779,1713077439094,-176.4602082,0.00025288,2]
[322573780,1713077439103,-176.4602082,0.00025288,2]
[322573781,1713077439113,-176.4602082,0.00025288,2]
[322573782,1713077439122,-176.4602082,0.00025288,2]
[322573783,1713077439132,-176.4602082,0.00025288,2]
[322573784,1713077439142,-176.4602082,0.00025288,2]
[322573785,1713077439152,-176.4602082,0.00025288,2]
[322573786,1713077439161,-176.4602082,0.00025288,2]
[322573787,1713077439171,-176.4602082,0.00025288,2]
[322573788,1713077439181,-176.4602082,0.00025288,2]
[322573789,1713077439190,-176.4602082,0.00025288,2]
[322573790,1713077439199,-176.4602082,0.00025288,2]
[322573791,1713077439209,-176.4602082,0.00025288,2]
[322573792,1713077439219,-176.4602082,0.00025288,2]
[322573793,1713077439228,-176.4602082,0.00025288,2]
[322573794,1713077439238,-155.0,0.00025298,2]
[322573795,1713077439247,-616.61601776,0.00025298,2]
[322573796,1713077439261,-124064.09970468,0.00025298,2]
[322573797,1713077439271,-155.0,0.000253,2]
[322573798,1713077439281,-287.99155626,0.000253,2]
[322573799,1713077439290,-4481.69957658,0.000253,2]
[322573800,1713077439299,-867.98167607,0.000253,2]
[322573801,1713077439309,-179.38367057,0.000253,2]
[322573803,1713077439318,-345.28914324,0.000253,2]
[322573805,1713077439327,-321.03760014,0.000253,2]
[322573806,1713077439336,-1034.82627402,0.000253,2]
[322573808,1713077439346,-42529.83786207,0.000253,2]
[322573810,1713077439355,-19646.07439867,0.000253,2]
[322573811,1713077439365,-7488.84870537,0.000253,2]
[322573812,1713077439374,-1474.54697078,0.000253,2]
[322573813,1713077439383,-365.3656884,0.000253,2]
[322573814,1713077439393,-408.03329043,0.000253,2]
[322573815,1713077439402,-1372.78793614,0.000253,2]
[322573816,1713077439411,-168.17,0.00025469,2]
[322573817,1713077439420,-168.17,0.00025729,2]
[322573818,1713077439430,-168.17,0.00025989,2]
[322573819,1713077439439,-168.17,0.00026249,2]
[322573820,1713077439448,-283.2,0.0002626,2]
[322573821,1713077439457,-2291.0,0.00026288,2]
[322573822,1713077439466,-1391.0,0.00026288,2]
[322573823,1713077439475,-461.0,0.00026288,2]
[322573824,1713077439484,-968.0,0.00026288,2]
[322573826,1713077439494,-807.0,0.00026288,2]
[322573827,1713077439504,-292.138,0.00026288,2]
[322573828,1713077439513,-1948.0,0.00026288,2]
[322573829,1713077439522,-436.0,0.00026288,2]
[322573830,1713077439532,-615.403,0.00026288,2]
[322573831,1713077439541,-3043.0,0.00026288,2]
[322573832,1713077439550,-1472.0,0.00026288,2]
[322573833,1713077439559,-293.532,0.00026288,2]
[322573834,1713077439568,-1140.0,0.00026288,2]
[322573835,1713077439577,-411.009,0.00026288,2]
[322573836,1713077439586,-203.751,0.00026288,2]
[322573837,1713077439595,-2440.0,0.00026288,2]
[322573838,1713077439604,-1646.464,0.00026288,2]
[322573839,1713077439613,-253.584,0.00026288,2]
[322573840,1713077439622,-443.186,0.00026288,2]
[322573841,1713077439632,-226.0,0.00026288,2]
[322573842,1713077439641,-399.52,0.00026288,2]
[322573843,1713077439652,-37623.0,0.00026288,2]
[322573844,1713077439662,-1377.673,0.00026288,2]
[322573845,1713077439671,-5719.0,0.00026288,2]
[322573846,1713077439682,-4803.0,0.00026288,2]
[322573847,1713077439691,-2466.0,0.00026288,2]
[322573848,1713077439703,-157.822,0.00026288,2]
[322573849,1713077439713,-151.442,0.00026288,2]
[322573850,1713077439724,-582.54,0.00026298,2]
[322573851,1713077439734,-17651.0,0.000263,3]
[322573852,1713077439743,-17651.0,0.000267,5]
[322573853,1713077439754,-1000.0,0.00026892,2]
[322573854,1713077439764,-650.0,0.00027,3]
[322573855,1713077439774,-155.16,0.00027397,2]
[322573856,1713077439784,-195.66,0.00027397,2]
[322573857,1713077439795,-7933.2,0.00027397,15]
[322573858,1713077439806,-311.03,0.00027489,2]
[322573859,1713077439815,-167.11,0.0002764,2]
[322573860,1713077439824,-20189.0893382,0.00028,2]
[322573861,1713077439834,-200.0,0.00028041,7]
[322573862,1713077439854,-167.0,0.00028589,2]
[322573863,1713077439868,-251403.04182095,0.000289,4]
[322573864,1713077439887,-3299.96496669,0.000289,4]
[322573865,1713077439901,-471.25274,0.000289,4]
[322573866,1713077439914,-378400.30607031,0.000289,4]
[322573867,1713077439925,-7500.0,0.000289,2]
[322573868,1713077439935,-1016.0,0.00029,5]
[322573869,1713077439944,-6750.20773336,0.00029,2]
[322573870,1713077439954,-562.05444632,0.00029,2]
[322573871,1713077439965,-138814.62924314,0.00029,2]
[322573872,1713077439992,-307.58743638,0.00029,2]
[322573891,1713077440408,-669.28335182,0.00029,2]
[322573892,1713077440420,-549.11543236,0.00029,2]
[322573893,1713077440433,-636.67807621,0.00029,2]
[322573894,1713077440445,-35284.18522708,0.00029,2]
[322573895,1713077440460,-496.002,0.00029,2]
[322573956,1713077443124,-2599.63704,0.00029,2]
[322573957,1713077443149,-1092.59470012,0.00029,2]
[322573958,1713077443161,-1571.0000001,0.00029,2]
[322573959,1713077443172,-49723.20399681,0.00029,2]
[322573960,1713077443183,-6150.59674623,0.00029,2]
[322573961,1713077443195,-656.13290379,0.00029,2]
[322573976,1713077443841,-926.12701985,0.00029,2]
[322573977,1713077443853,-324.90780022,0.00029,2]
[322573990,1713077445860,-255.0,0.00028999,2]
[322573991,1713077445872,-352.65156382,0.00028999,2]
[322573992,1713077445881,-2739.29424175,0.00029,2]
[322573993,1713077445937,-6440.429921,0.00029,2]
[322573994,1713077446479,-547.65636709,0.00020694,2]
[322573995,1713077446492,-97.46708736,0.00020694,2]
[322573996,1713077446501,-607.41354014,0.00029,2]
[322573997,1713077446543,-1006.8,0.00029,2]
[322573998,1713077446619,-324.23779872,0.00029,2]
[322574002,1713077486768,300.0,0.0002,7]
[322574003,1713077488046,584.34585763,0.00025,30]
[322574004,1713077488084,700.0,0.000201,7]
[322574005,1713077488396,171.12,0.00016712,2]
[322574006,1713077490128,1000.0,0.000202,7]
[322574007,1713077492223,1400.0,0.000203,7]
[322574008,1713077494304,1700.0,0.000204,7]
[322574009,1713077496401,300.0,0.000205,7]
[322574010,1713077500354,300.0,0.000206,7]
[322574011,1713077502083,300.0,0.000207,7]
[322574012,1713077504218,300.0,0.000208,7]
[322574013,1713077506488,719.0,0.000209,7]
[322574014,1713077518023,9654.92347693,6.94e-05,2]
[322574015,1713077538572,952.68711223,0.00019855,2]
[322574016,1713077554437,952.68711223,0.00019855,2]
[322574017,1713077576541,952.68711223,0.00019855,2]
[322574018,1713077579759,19652.68230723,0.00019855,2]
[322574019,1713077580784,1469.95148624,0.00019855,2]
[322574020,1713077581035,343.77520184,0.00019855,2]
[322574021,1713077581377,20147.70779413,0.00019855,2]
[322574022,1713077582732,288.09495201,0.00019855,2]
[322574023,1713077582985,1372.78793614,0.00019855,2]
[322574024,1713077583045,365.3656884,0.00019855,2]
[322574025,1713077585121,42544.52953478,0.00019855,2]
[322574026,1713077585333,7491.48135887,0.00019855,2]
[322574027,1713077588140,408.03329043,0.00019855,2]
[322574028,1713077588170,179.44574028,0.00019855,2]
[322574029,1713077591386,865.36661426,0.00019855,2]
[322574030,1713077592439,952.68711223,0.00018862,2]
[322574031,1713077594726,1469.95148624,0.00019855,2]
[322574032,1713077596152,20147.70779413,0.00019855,2]
[322574033,1713077596313,1035.18121822,0.00019855,2]
[322574035,1713077597823,19652.68230723,0.00019855,2]
[322574036,1713077598938,7491.48135887,0.00019855,2]
[322574037,1713077599027,482.57976364,0.00019855,2]
[322574038,1713077600146,408.03329043,0.00019855,2]
[322574039,1713077600956,343.77520184,0.00019855,2]
[322574040,1713077601365,1372.78793614,0.00019855,2]
[322574041,1713077602741,288.09495201,0.00019855,2]
[322574042,1713077604142,179.44574028,0.00019855,2]
[322574043,1713077604470,41313.79360102,0.00019855,2]
[322574044,1713077604497,1230.73593376,0.00019855,2]
[322574045,1713077610443,218.81600821,0.00018862,2]
[322574046,1713077611458,1035.18121822,0.00019855,2]
[322574047,1713077613341,865.36661426,0.00019855,2]
[322574048,1713077615853,19652.68230723,0.00019855,2]
[322574049,1713077616137,260.45963734,0.00019855,2]
[322574050,1713077616729,1469.95148624,0.00019855,2]
[322574051,1713077617622,7491.48135887,0.00019855,2]
[322574052,1713077617653,1372.78793614,0.00019855,2]
[322574053,1713077620626,319.4127886,0.00019855,2]
[322574054,1713077621288,288.09495201,0.00019855,2]
[322574055,1713077621367,382.06310529,0.00019855,2]
[322574056,1713077621559,20147.70779413,0.00019855,2]
[322574057,1713077624147,179.44574028,0.00019855,2]
[322574058,1713077629454,1035.18121822,0.00019855,2]
[322574059,1713077630534,42544.52953478,0.00019855,2]
[322574060,1713077632526,319.4127886,0.00019855,2]
[322574061,1713077635001,7491.48135887,0.00019855,2]
[322574062,1713077635334,865.36661426,0.00019855,2]
[322574063,1713077635819,18968.41830566,0.00019855,2]
[322574064,1713077636717,288.09495201,0.00019855,2]
[322574065,1713077639312,1469.95148624,0.00019855,2]
[322574066,1713077639375,1372.78793614,0.00019855,2]
[322574067,1713077640151,243.76440026,0.00019855,2]
[322574068,1713077643416,20147.70779413,0.00019855,2]
[322574070,1713077647456,1035.18121822,0.00019855,2]
[322574071,1713077651106,7491.48135887,0.00019855,2]
[322574072,1713077652488,42544.52953478,0.00019855,2]
[322574073,1713077652821,319.4127886,0.00019855,2]
[322574074,1713077653348,865.36661426,0.00019855,2]
[322574076,1713077656724,288.09495201,0.00019855,2]
[322574077,1713077656990,1372.78793614,0.00019855,2]
[322574078,1713077658854,1469.95148624,0.00019855,2]
[322574079,1713077659744,302.80186641,0.00019855,2]
[322574080,1713077660922,3449.72900386,0.0002,2]
[322574081,1713077665499,1035.18121822,0.00019855,2]
[322574082,1713077672478,42544.52953478,0.00019855,2]
[322574083,1713077674731,288.09495201,0.00019855,2]
[322574084,1713077674764,186.68541571,0.00019855,2]
[322574085,1713077677346,865.36661426,0.00019855,2]
[322574086,1713077680070,337.75581498,0.00019855,2]
[322574087,1713077680114,1372.78793614,0.00019855,2]
[322574088,1713077680479,6443.73,0.00024,30]
[322574091,1713077685456,1035.18121822,0.00019855,2]
[322574092,1713077690965,7491.48135887,0.00019855,2]
[322574093,1713077694481,13109.41090592,0.00019855,2]
[322574094,1713077694526,319.98642098,0.00019855,2]
[322574095,1713077694985,1372.78793614,0.00019855,2]
[322574096,1713077696961,269.885008,0.00019855,2]
[322574097,1713077697389,338.52256938,0.00019855,2]
[322574098,1713077709490,541.58723444,0.00019855,2]
[322574099,1713077717304,446.34572026,0.00019855,2]
[322574100,1713077727019,6282.43389506,0.00019855,2]
[322574101,1713077760566,27558.63739875,0.0002,2]
[322574102,1713077770105,9225.51595,0.00019988,2]
[322574103,1713077793696,428.26,0.00018552,2]
[322574104,1713077813310,178.5940742,0.00019988,2]
[322574105,1713077828984,865.4932854,0.00019987,2]
[322574106,1713077841777,308.97104574,0.00029998,60]
[322574107,1713077909670,157.18627567,0.00020998,30]
[322574108,1713077922805,3159.87967817,0.00019948,2]
[322574109,1713077943753,150.5,0.0002099,15]
[322574110,1713077943973,150.5,0.0002099,15]
[322574111,1713077944038,1181.0,0.0002099,15]
[322574112,1713077944233,150.5,0.0002098,15]
[322574113,1713077944269,1181.0,0.0002098,15]
[322574114,1713077944349,170.68,0.0002098,15]
[322574115,1713077944387,266.92,0.0002097,15]
[322574116,1713077944419,1181.0,0.0002097,15]
[322574117,1713077944450,421.0,0.0002099,15]
[322574118,1713077944808,421.0,0.0002098,15]
[322574119,1713077945079,150.5,0.0002099,15]
[322574120,1713077945280,421.0,0.0002097,15]
[322574121,1713077945866,153.23,0.0002098,15]
[322574122,1713077945990,421.0,0.0002099,15]
[322574123,1713077946126,1181.0,0.0002099,15]
[322574124,1713077946286,421.0,0.0002098,15]
[322574125,1713077946749,421.0,0.0002097,15]
[322574126,1713077947038,1181.0,0.0002098,15]
[322574127,1713077947171,153.39,0.0002099,15]
[322574128,1713077947591,421.0,0.0002099,15]
[322574129,1713077947776,3090.0,0.0002099,15]
[322574130,1713077948055,1181.0,0.0002097,15]
[322574131,1713077948110,421.0,0.0002098,15]
[322574132,1713077948562,421.0,0.0002099,15]
[322574133,1713077948617,1181.0,0.0002099,15]
[322574134,1713077949176,428.71,0.0002098,15]
[322574135,1713077949756,1181.0,0.0002098,15]
[322574136,1713077949791,3090.0,0.0002098,15]
[322574137,1713077950223,1181.0,0.0002099,15]
[322574138,1713077950620,3090.0,0.0002097,15]
[322574139,1713077950711,1182.85,0.0002098,15]
[322574140,1713077951165,3090.0,0.0002099,15]
[322574141,1713077952221,3090.0,0.0002098,15]
[322574142,1713077952677,3090.0,0.0002097,15]
[322574143,1713077953266,3090.0,0.0002099,15]
[322574144,1713077953628,3090.0,0.0002098,15]
[322574145,1713077954513,3090.0,0.0002099,15]
[322574146,1713077955054,3097.54,0.0002098,15]
[322574147,1713077978170,171.12,0.00016712,2]
[322574148,1713077991724,-155.0,0.00020079,2]
[322574149,1713077991746,-155.0,0.0002008,2]
[322574150,1713077991768,-1344.0,0.00020086,2]
[322574151,1713077991792,-188.90616638,0.00020248,2]
[322574152,1713077991815,-394.63,0.00020348,2]
[322574153,1713077991845,-188.90616637,0.00020361,2]
[322574154,1713077991871,-11900.0,0.00020403,2]
[322574155,1713077991894,-200.0,0.00020461,2]
[322574156,1713077991920,-162.17,0.00020469,2]
[322574157,1713077991944,-300.0,0.0002051,2]
[322574158,1713077991969,-150.0,0.0002051,2]
[322574159,1713077991990,-6655.21973297,0.00020511,2]
[322574160,1713077992012,-499.99,0.00020584,2]
[322574161,1713077992036,-5034.28793428,0.00020584,2]
[322574162,1713078003870,155.0,0.00018898,2]
[322574163,1713078021868,183.81215809,0.00018898,2]
[322574164,1713078031176,169.99,0.00016126,2]
[322574165,1713078031316,169.99,0.00018813,2]
[322574166,1713078054950,156.46,0.00016054,2]
[322574167,1713078063563,-551.36056667,0.00020078,2]
[322574168,1713078063588,-607.65156382,0.00020079,2]
[322574169,1713078063611,-8840.98786951,0.00020084,2]
[322574170,1713078063975,402.55402765,0.0002099,15]
[322574171,1713078064000,3582.44597235,0.0002099,15]
[322574172,1713078064048,150.5,0.0002099,15]
[322574173,1713078064470,3985.0,0.0002098,15]
[322574174,1713078064941,150.5,0.0002098,15]
[322574175,1713078064974,3985.0,0.0002097,15]
[322574176,1713078065432,150.5,0.0002097,15]
[322574177,1713078066088,3985.0,0.0002099,15]
[322574178,1713078066839,3985.0,0.0002098,15]
[322574179,1713078067081,3985.0,0.0002097,15]
[322574180,1713078067519,3985.0,0.0002099,15]
[322574181,1713078067995,3985.0,0.0002098,15]
[322574182,1713078068496,3985.0,0.0002099,15]
[322574183,1713078068960,3987.98,0.0002098,15]
[322574184,1713078154963,982.45,0.0001997,2]
[322574185,1713078205242,500.0,0.0001997,2]
[322574186,1713078242191,150.0,0.0001987,15]
[322574187,1713078242674,500.0,0.00019795,2]
[322574188,1713078246797,164.41,0.00019795,2]
[322574189,1713078247142,164.41,0.00029692,120]
[322574191,1713078305352,150.0,0.00019773,2]
[322574192,1713078333892,3050.56,0.00019786,2]
[322574193,1713078355298,472.1,0.00017832,2]
[322574195,1713078379974,454.66,0.00019761,2]
[322574197,1713078507547,-665.87234241,0.00036393,30]
[322574198,1713078507572,-476.74107229,0.00036393,30]
[322574199,1713078507600,-356.32884339,0.00036393,30]
[322574200,1713078507624,-804.88667597,0.00036393,30]
[322574201,1713078507651,-823.3367057,0.00036393,30]
[322574202,1713078507678,-841.65357381,0.00036393,30]
[322574203,1713078507701,-981.19463733,0.00036393,30]
[322574204,1713078507724,-1403.61317431,0.00036393,30]
[322574205,1713078507747,-689.4581882,0.00036393,30]
[322574206,1713078507771,-841.06287236,0.00036393,30]
[322574207,1713078507795,-162.47900277,0.00036393,120]
[322574208,1713078507818,-880.49190557,0.00036393,30]
[322574209,1713078507841,-363.60908577,0.00036393,30]
[322574210,1713078507865,-806.43293266,0.00036393,30]
[322574211,1713078507888,-814.14647825,0.00036393,30]
[322574212,1713078507911,-166.5112832,0.00036393,30]
[322574213,1713078507939,-219.37614794,0.00036393,120]
[322574214,1713078507963,-194.86909843,0.00036393,30]
[322574215,1713078507990,-905.60033646,0.00036393,30]
[322574216,1713078508016,-550.15789923,0.00036393,120]
[322574217,1713078508045,-328.74461297,0.00036393,30]
[322574218,1713078508071,-340.84549071,0.00036393,120]
[322574219,1713078508110,-1121.48235063,0.00036393,120]
[322574220,1713078508134,-255.00963634,0.00036393,30]
[322574221,1713078508163,-265.99945737,0.00036393,120]
[322574222,1713078508188,-833.34091158,0.00036393,30]
[322574223,1713078508211,-5942.49518152,0.00036393,30]
[322574224,1713078508235,-190.5420708,0.00036393,30]
[322574225,1713078508259,-210.4969369,0.00036393,120]
[322574226,1713078508292,-241.5297874,0.00036393,120]
[322574227,1713078508319,-249.57222938,0.00036393,30]
[322574228,1713078508345,-220.48250504,0.00036393,120]
[322574229,1713078508370,-400.8635272,0.00036393,30]
[322574230,1713078508397,-656.0635,0.00036393,30]
[322574231,1713078508421,-10339.32351122,0.00036393,30]
[322574232,1713078508448,-167.17850053,0.00036393,120]
[322574233,1713078508473,-1269.61075227,0.00036393,120]
[322574234,1713078508500,-1428.43293649,0.00036393,120]
[322574235,1713078508528,-558.53872074,0.00036393,30]
[322574236,1713078508553,-168.90321023,0.00036393,120]
[322574237,1713078508577,-188.0,0.00036393,30]
[322574238,1713078508602,-964.0,0.00036393,30]
[322574239,1713078508654,-1415.03477315,0.00036393,120]
[322574245,1713078528871,-380.0,0.00026393,28]
[322574246,1713078534823,163.6762668,0.00019907,2]
[322574247,1713078539114,2041.46,0.00036393,90]
[322574248,1713078578246,3015.5637,0.00019907,2]
[322574249,1713078581784,1852.42,0.0001974,2]
[322574250,1713078584777,2843.14,0.0001974,2]
[322574251,1713078589893,1042.21,0.0001993,2]
[322574252,1713078611057,169.99,0.00015792,2]
[322574253,1713078611303,169.99,0.0001974,2]
[322574299,1713078632081,-890.8014831,0.00020004,2]
[322574300,1713078632091,-442.20973208,0.00020005,2]
[322574301,1713078632100,-174.79311185,0.00020006,2]
[322574302,1713078632118,-761.20688815,0.00020006,2]
[322574303,1713078632126,-548.26,0.00020006,2]
[322574304,1713078632135,-432.12,0.00020006,2]
[322574305,1713078632143,-407.71,0.00020037,2]
[322574306,1713078632150,-159.64,0.00020063,2]
[322574307,1713078632158,-472.1,0.00020096,2]
[322574309,1713078632167,-65.57121942,0.00020179,2]
[322574324,1713078632742,-94.06878058,0.00020179,2]
[322574325,1713078632752,-150.0,0.00020227,2]
[322574326,1713078632763,-150.0,0.00020227,2]
[322574327,1713078632772,-365.67,0.00020227,2]
[322574328,1713078632786,-73.76333244,0.00020228,2]
[322574329,1713078632800,-77.22666756,0.00020228,2]
[322574330,1713078632810,-159.64,0.00020295,2]
[322574331,1713078632819,-163.67626679,0.00020404,2]
[322574332,1713078632828,-139.14726673,0.00020411,2]
[322574333,1713078632864,-20.49273327,0.00020411,2]
[322574334,1713078633159,-159.64,0.00020527,2]
[322574335,1713078633169,-789.3237921,0.00020584,2]
[322574336,1713078633183,-692.85237343,0.00020584,2]
[322574337,1713078633193,-150.99,0.00020594,2]
[322574338,1713078633204,-300.0,0.00020594,2]
[322574339,1713078633214,-159.64,0.00020644,2]
[322574340,1713078633224,-159.64,0.0002076,2]
[322574341,1713078633233,-155.21992077,0.00020788,2]
[322574342,1713078633242,-1749.58858496,0.000208,2]
[322574343,1713078633256,-106.03191504,0.000208,2]
[322574344,1713078633267,-813.29124299,0.000208,2]
[322574345,1713078633280,-947.33117361,0.000208,2]
[322574346,1713078633291,-1289.37602181,0.00020811,2]
[322574347,1713078633303,-471.24639477,0.00020811,2]
[322574348,1713078633312,-1145.0677838,0.00020822,2]
[322574349,1713078633330,-615.55463278,0.00020822,2]
[322574350,1713078633340,-1760.62241658,0.00020833,2]
[322574351,1713078633349,-1760.62241658,0.00020844,2]
[322574352,1713078633361,-1760.62241658,0.00020856,2]
[322574353,1713078633371,-520.38734611,0.00020867,2]
[322574354,1713078633383,-411.26103104,0.00020867,2]
[322574355,1713078633394,-828.97403943,0.00020867,2]
[322574356,1713078633404,-159.64,0.00020876,2]
[322574357,1713078633414,-1760.62241658,0.00020878,2]
[322574358,1713078633423,-1760.62241658,0.00020889,2]
[322574359,1713078633432,-2203.435,0.000209,2]
[322574360,1713078633442,-7681.24308536,0.000209,2]
[322574361,1713078633451,-92887.4599,0.000209,2]
[322574362,1713078633460,-500.0,0.000209,2]
[322574363,1713078633469,-5800.0,0.000209,2]
[322574364,1713078633478,-38525.1721,0.000209,2]
[322574365,1713078633488,-586.19710087,0.000209,2]
[322574366,1713078633498,-586.19710082,0.000209,2]
[322574367,1713078633507,-586.19710082,0.000209,2]
[322574368,1713078633518,-586.19710082,0.000209,2]
[322574369,1713078633528,-586.19710082,0.000209,2]
[322574370,1713078633538,-586.19710082,0.000209,2]
[322574371,1713078633547,-586.19710082,0.000209,2]
[322574372,1713078633556,-586.19710082,0.000209,2]
[322574373,1713078633566,-586.19710082,0.000209,2]
[322574374,1713078633575,-1760.62241658,0.000209,2]
[322574375,1713078633585,-586.19710082,0.000209,2]
[322574376,1713078633594,-586.19710082,0.000209,2]
[322574377,1713078633603,-586.19710082,0.000209,2]
[322574378,1713078633612,-163.67626679,0.000209,2]
[322574379,1713078633621,-586.19710082,0.000209,2]
[322574380,1713078633630,-586.19710082,0.000209,2]
[322574381,1713078633640,-781.72143581,0.000209,3]
[322574382,1713078633649,-586.19710082,0.000209,2]
[322574383,1713078633658,-586.19710082,0.000209,2]
[322574384,1713078633667,-586.19710082,0.000209,2]
[322574385,1713078633676,-586.19710082,0.000209,2]
[322574386,1713078633686,-586.19710082,0.000209,2]
[322574387,1713078633695,-586.19710082,0.000209,2]
[322574388,1713078633704,-2500.0,0.000209,2]
[322574389,1713078633713,-491.21036723,0.000209,2]
[322574390,1713078633722,-159.64,0.00020992,2]
[322574391,1713078633731,-642.58013102,0.00020998,2]
[322574392,1713078633740,-200.23312793,0.00020998,2]
[322574393,1713078633749,-202.85900517,0.00020998,2]
[322574394,1713078633760,-304.80897078,0.00020998,2]
[322574395,1713078633770,-161.84491414,0.00020998,2]
[322574396,1713078633781,-542.50421355,0.00020998,2]
[322574397,1713078633791,-155.0,0.00020998,2]
[322574398,1713078633801,-550.91954647,0.00020998,2]
[322574399,1713078633810,-225.56480463,0.00020998,2]
[322574400,1713078633819,-616.61601776,0.00020999,2]
[322574401,1713078633827,-585.09983492,0.00020999,2]
[322574402,1713078633837,-405.28002546,0.00021,2]
[322574403,1713078633847,-85850.14132301,0.00021,2]
[322574404,1713078633864,-753.66321503,0.00021,2]
[322574405,1713078635168,23900.0,0.0001974,2]
[322574427,1713078637797,-49507.8704,0.00021,2]
[322574437,1713078637885,-3833.60064356,0.00021,2]
[322574438,1713078637897,-6080.91270672,0.00021,2]
[322574439,1713078638031,-994.52,0.00021,2]
[322574440,1713078638043,-1508.58978195,0.00021,2]
[322574441,1713078638094,-1257.22603531,0.00021,2]
[322574442,1713078638164,-9383727.21405756,0.00021,2]
[322574443,1713078638176,-13048929.1744736,0.00021,2]
[322574444,1713078638218,-143893.37781954,0.00021,2]
[322574445,1713078638229,-237242.87669598,0.00021,2]
[322574507,1713078639943,-5283.5191322,0.00021,2]
[322574508,1713078639956,-382.32,0.00021,2]
[322574509,1713078639988,-398.86388116,0.00021,2]
[322574562,1713078643030,-323.13943688,0.000209,2]
[322574563,1713078643040,-12470.37948312,0.00021,2]
[322574564,1713078643096,-1122.09054895,0.00021,2]
[322574565,1713078643108,-3236.78017023,0.00021,2]
[322574576,1713078643798,-311.7686698,0.00021,2]
[322574584,1713078645889,-194.87017838,0.00020999,2]
[322574585,1713078645898,-201.64482162,0.00020999,2]
[322574586,1713078645910,-301.43,0.00020999,2]
[322574587,1713078645923,-90.79283378,0.00020999,2]
[322574588,1713078645933,-891.65767349,0.00021,2]
[322574589,1713078645945,-396.83377092,0.00021,2]
[322574590,1713078645956,-385.40562752,0.00021,2]
[322574591,1713078646120,-999.02301719,0.00021,2]
[322574605,1713078655455,309.00678998,0.00020999,7]
[322574608,1713078756277,-3754.55085051,0.00020898,2]
[322574609,1713078756302,-494.88971284,0.00020898,2]
[322574610,1713078756328,-150.0,0.00020898,2]
[322574611,1713078756352,-16940.4953,0.00020899,2]
[322574612,1713078756377,-3705.846,0.00020899,2]
[322574613,1713078756400,-3724.635,0.00020899,2]
[322574614,1713078756424,-3662.615,0.00020899,2]
[322574615,1713078756446,-199.7622544,0.000209,2]
[322574616,1713078756468,-1000.0,0.000209,2]
[322574617,1713078756491,-1746.96915345,0.000209,2]
[322574618,1713078756513,-552.82954974,0.00020999,2]
[322574619,1713078756534,-538.73016687,0.00020999,2]
[322574620,1713078756557,-4963528.67701219,0.00021,2]
[322574621,1713078863849,484.0,0.00036117,30]
[322574623,1713079063559,187.0,0.00036117,30]
[322574624,1713079109263,169.99,0.00016614,2]
[322574625,1713079302618,548.88,0.0001855,2]
[322574626,1713079441768,8977.84718972,0.0001855,2]
[322574627,1713079543232,164.77720507,0.00019932,2]
[322574628,1713079620250,6498.75462814,0.00019932,2]
[322574629,1713079639146,1894.75,0.00019986,2]
[322574631,1713079668682,166.78927681,0.00019886,15]
[322574632,1713079686269,259.44264635,0.00019787,30]
[322574633,1713079745287,15056.8706,0.00019927,2]
[322574634,1713079757166,-3754.55085051,0.00020021,2]
[322574635,1713079757190,-19415.06848041,0.00020022,2]
[322574636,1713079757214,-494.88971284,0.00020023,2]
[322574637,1713079757241,-173.09,0.00020095,2]
[322574638,1713079757262,-200.0,0.0002012,2]
[322574639,1713079757284,-477.46,0.00020134,2]